fUST/lending_fUST_20250220
["ID","MTS","AMOUNT","RATE_DAILY","PERIOD"]
[353777003,1740037850685,-500.0,0.00013945,2]
[353777004,1740037850695,-500.0,0.00013945,2]
[353777005,1740037850704,-500.0,0.00013945,2]
[353777006,1740037850713,-500.0,0.00013945,2]
[353777007,1740037850723,-500.0,0.00013945,2]
[353777008,1740037850732,-624.48,0.00013945,2]
[353777009,1740037850741,-502.369147,0.00013945,2]
[353777010,1740037850750,-500.0,0.00013945,2]
[353777011,1740037850760,-502.369147,0.00013945,2]
[353777012,1740037850769,-503.23941906,0.00013945,2]
[353777013,1740037850779,-500.0,0.00013945,2]
[353777014,1740037850789,-500.0,0.00013945,2]
[353777015,1740037850798,-1976.19,0.00013945,2]
[353777016,1740037850808,-8203.67,0.00013945,2]
[353777017,1740037850817,-500.0,0.00013945,2]
[353777018,1740037850827,-503.81940396,0.00013945,2]
[353777019,1740037850837,-500.0,0.00013945,2]
[353777020,1740037850847,-557.016209,0.00013945,2]
[353777021,1740037850856,-4279.92,0.00013945,2]
[353777022,1740037850866,-737.08,0.00013945,2]
[353777023,1740037850875,-557.016209,0.00013945,2]
[353777024,1740037850885,-549.84,0.00013945,2]
[353777025,1740037850894,-500.0,0.00013945,2]
[353777026,1740037850903,-4313.172942,0.00013945,2]
[353777027,1740037850913,-500.0,0.00013945,2]
[353777028,1740037850923,-4313.172942,0.00013945,2]
[353777029,1740037850932,-1759.67,0.00013945,2]
[353777030,1740037850941,-500.0,0.00013945,2]
[353777031,1740037850950,-500.0,0.00013945,2]
[353777032,1740037850960,-500.0,0.00013945,2]
[353777033,1740037850970,-1761.9,0.00013945,2]
[353777034,1740037850980,-500.0,0.00013945,2]
[353777035,1740037850990,-500.0,0.00013945,2]
[353777036,1740037851000,-500.0,0.00013945,2]
[353777037,1740037851010,-168.42166634,0.00013945,2]
[353777038,1740037851019,-500.0,0.00013972,2]
[353777039,1740037851028,-485.88394331,0.00013973,2]
[353777040,1740037851037,-500.56578319,0.00013973,2]
[353777041,1740037851047,-500.0,0.00013973,2]
[353777042,1740037851056,-500.60642967,0.00013973,2]
[353777043,1740037851065,-500.0,0.00013973,2]
[353777044,1740037851075,-274.97424876,0.00013973,2]
[353777045,1740037851084,-500.0,0.00013973,2]
[353777046,1740037851098,-500.0,0.00013973,2]
[353777047,1740037851108,-500.0,0.00013973,2]
[353777048,1740037851118,-573.01292755,0.00013973,2]
[353777049,1740037851127,-332.12341208,0.00013973,2]
[353777050,1740037851138,-500.0,0.00013973,2]
[353777051,1740037851147,-500.0,0.00013973,2]
[353777052,1740037851156,-500.0,0.00013973,2]
[353777053,1740037851166,-53789.49098076,0.00013987,2]
[353777054,1740037851175,-195.254147,0.00013987,2]
[353777055,1740037851185,-195.254147,0.00013987,2]
[353777056,1740037851195,-151.0,0.00013987,2]
[353777057,1740037851204,-151.0,0.00013987,2]
[353777058,1740037851213,-151.0,0.00013987,2]
[353777059,1740037851222,-1155.312779,0.00013987,2]
[353777060,1740037851232,-1155.312779,0.00013987,2]
[353777061,1740037851241,-151.0,0.00013987,2]
[353777062,1740037851251,-151.0,0.00013987,2]
[353777063,1740037851260,-484.118219,0.00013987,2]
[353777064,1740037851341,-484.118219,0.00013987,2]
[353777065,1740037851350,-977.661135,0.00013987,2]
[353777066,1740037851360,-977.661135,0.00013987,2]
[353777067,1740037851370,-710.690771,0.00013987,2]
[353777068,1740037851380,-710.690771,0.00013987,2]
[353777069,1740037851390,-151.0,0.00013987,2]
[353777070,1740037851399,-2539.706242,0.00013987,2]
[353777071,1740037851409,-2539.706242,0.00013987,2]
[353777072,1740037851418,-2295.318834,0.00013987,2]
[353777073,1740037851429,-996.372878,0.00013987,2]
[353777074,1740037851439,-2295.318834,0.00013987,2]
[353777075,1740037851448,-996.372878,0.00013987,2]
[353777076,1740037851457,-206.985044,0.00013987,2]
[353777077,1740037851467,-206.985044,0.00013987,2]
[353777078,1740037851477,-450.0,0.00013987,2]
[353777079,1740037851486,-450.0,0.00013987,2]
[353777080,1740037851495,-612.621367,0.00013987,2]
[353777081,1740037851504,-1249.181117,0.00013987,2]
[353777082,1740037851514,-612.621367,0.00013987,2]
[353777083,1740037851524,-1249.181117,0.00013987,2]
[353777084,1740037851535,-157.764241,0.00013987,2]
[353777085,1740037851546,-522.36648487,0.00013989,2]
[353777086,1740037851556,-406.52348735,0.0001399,2]
[353777087,1740037851567,-4097.20486937,0.0001399,2]
[353777088,1740037851579,-151.0,0.0001399,2]
[353777089,1740037851590,-1399.807664,0.0001399,2]
[353777090,1740037851600,-151.0,0.0001399,2]
[353777091,1740037851610,-1399.807664,0.0001399,2]
[353777092,1740037851620,-391.295773,0.0001399,2]
[353777093,1740037851632,-391.295773,0.0001399,2]
[353777094,1740037851641,-212.503035,0.0001399,2]
[353777095,1740037851650,-151.0,0.0001399,2]
[353777096,1740037851660,-212.503035,0.0001399,2]
[353777097,1740037851669,-1014.982216,0.0001399,2]
[353777098,1740037851679,-1014.982216,0.0001399,2]
[353777099,1740037851688,-5576.715687,0.0001399,2]
[353777100,1740037851697,-5576.715687,0.0001399,2]
[353777101,1740037851706,-607.312579,0.0001399,2]
[353777102,1740037851715,-607.312579,0.0001399,2]
[353777103,1740037851724,-2032.866243,0.0001399,2]
[353777104,1740037851734,-2032.866243,0.0001399,2]
[353777105,1740037851743,-691.330431,0.0001399,2]
[353777106,1740037851752,-691.330431,0.0001399,2]
[353777107,1740037851762,-646.366623,0.0001399,2]
[353777108,1740037851771,-646.366623,0.0001399,2]
[353777109,1740037851782,-591.569449,0.0001399,2]
[353777110,1740037851792,-591.569449,0.0001399,2]
[353777111,1740037851803,-151.0,0.0001399,2]
[353777112,1740037851813,-933.912484,0.0001399,2]
[353777113,1740037851822,-933.912484,0.0001399,2]
[353777114,1740037851831,-502.369147,0.0001399,2]
[353777115,1740037851840,-502.369147,0.0001399,2]
[353777116,1740037851851,-557.016209,0.0001399,2]
[353777117,1740037851860,-557.016209,0.0001399,2]
[353777118,1740037851870,-4313.172942,0.0001399,2]
[353777119,1740037851880,-4313.172942,0.0001399,2]
[353777120,1740037851889,-53789.49098076,0.0001399,2]
[353777121,1740037851899,-53789.49098076,0.00013998,2]
[353777122,1740037851910,-151.0,0.00013998,2]
[353777123,1740037851919,-1049.142319,0.00013998,2]
[353777124,1740037851929,-1049.142319,0.00013998,2]
[353777125,1740037851938,-1000.0,0.00014,14]
[353777126,1740037851948,-168.42166634,0.00014,2]
[353777127,1740037851957,-738.8294956,0.00014,2]
[353777128,1740037851966,-195.254147,0.00014027,2]
[353777129,1740037851976,-195.254147,0.00014027,2]
[353777130,1740037851986,-500.0,0.00014027,2]
[353777131,1740037851996,-500.0,0.00014027,2]
[353777132,1740037852005,-500.0,0.00014027,2]
[353777133,1740037852015,-212.503035,0.00014027,2]
[353777134,1740037852024,-151.0,0.00014027,2]
[353777135,1740037852033,-212.503035,0.00014027,2]
[353777136,1740037852042,-500.0,0.00014027,2]
[353777137,1740037852052,-151.0,0.00014027,2]
[353777138,1740037852061,-500.0,0.00014027,2]
[353777139,1740037852071,-1014.982216,0.00014027,2]
[353777140,1740037852080,-1014.982216,0.00014027,2]
[353777141,1740037852090,-324.52,0.00014027,2]
[353777142,1740037852100,-500.0,0.00014027,2]
[353777143,1740037852109,-151.0,0.00014027,2]
[353777144,1740037852117,-151.0,0.00014027,2]
[353777145,1740037852127,-500.0,0.00014027,2]
[353777146,1740037852137,-506.27883674,0.00014027,2]
[353777147,1740037852146,-1155.312779,0.00014027,2]
[353777148,1740037852155,-1155.312779,0.00014027,2]
[353777149,1740037852166,-151.0,0.00014027,2]
[353777150,1740037852176,-151.0,0.00014027,2]
[353777151,1740037852185,-607.312579,0.00014027,2]
[353777152,1740037852195,-607.312579,0.00014027,2]
[353777153,1740037852204,-207.8,0.00014027,2]
[353777154,1740037852213,-500.0,0.00014027,2]
[353777155,1740037852222,-561.63,0.00014027,2]
[353777156,1740037852233,-500.0,0.00014027,2]
[353777157,1740037852243,-500.0,0.00014027,2]
[353777158,1740037852252,-500.0,0.00014027,2]
[353777159,1740037852260,-500.0,0.00014027,2]
[353777160,1740037852268,-615.66,0.00014027,2]
[353777161,1740037852277,-500.0,0.00014027,2]
[353777162,1740037852286,-500.0,0.00014027,2]
[353777163,1740037852295,-500.0,0.00014027,2]
[353777164,1740037852304,-500.0,0.00014027,2]
[353777165,1740037852315,-484.118219,0.00014027,2]
[353777166,1740037852325,-484.118219,0.00014027,2]
[353777167,1740037852334,-500.0,0.00014027,2]
[353777168,1740037852344,-977.661135,0.00014027,2]
[353777169,1740037852353,-500.0,0.00014027,2]
[353777170,1740037852363,-977.661135,0.00014027,2]
[353777171,1740037852372,-500.0,0.00014027,2]
[353777172,1740037852382,-556.37,0.00014027,2]
[353777173,1740037852392,-500.0,0.00014027,2]
[353777174,1740037852402,-500.0,0.00014027,2]
[353777175,1740037852411,-500.0,0.00014027,2]
[353777176,1740037852422,-500.0,0.00014027,2]
[353777177,1740037852431,-500.0,0.00014027,2]
[353777178,1740037852440,-505.07060197,0.00014027,2]
[353777179,1740037852451,-405.69794003,0.00014027,2]
[353777180,1740037852528,-710.690771,0.00014027,2]
[353777181,1740037852537,-500.0,0.00014027,2]
[353777182,1740037852546,-710.690771,0.00014027,2]
[353777183,1740037852556,-500.0,0.00014027,2]
[353777184,1740037852567,-506.01830321,0.00014027,2]
[353777185,1740037852579,-2032.866243,0.00014027,2]
[353777186,1740037852589,-2032.866243,0.00014027,2]
[353777187,1740037852598,-500.0,0.00014027,2]
[353777188,1740037852607,-691.330431,0.00014027,2]
[353777189,1740037852616,-500.0,0.00014027,2]
[353777190,1740037852625,-500.0,0.00014027,2]
[353777191,1740037852634,-691.330431,0.00014027,2]
[353777192,1740037852643,-151.0,0.00014027,2]
[353777193,1740037852652,-500.0,0.00014027,2]
[353777194,1740037852662,-500.0,0.00014027,2]
[353777195,1740037852672,-504.40682222,0.00014027,2]
[353777196,1740037852681,-500.0,0.00014027,2]
[353777197,1740037852691,-500.0,0.00014027,2]
[353777198,1740037852700,-646.366623,0.00014027,2]
[353777199,1740037852709,-500.0,0.00014027,2]
[353777200,1740037852719,-646.366623,0.00014027,2]
[353777201,1740037852727,-591.569449,0.00014027,2]
[353777202,1740037852737,-500.0,0.00014027,2]
[353777203,1740037852746,-591.569449,0.00014027,2]
[353777204,1740037852755,-2539.706242,0.00014027,2]
[353777205,1740037852764,-521.41,0.00014027,2]
[353777206,1740037852774,-1809.42,0.00014027,2]
[353777207,1740037852784,-500.0,0.00014027,2]
[353777208,1740037852793,-2539.706242,0.00014027,2]
[353777209,1740037852803,-891.22,0.00014027,2]
[353777210,1740037852813,-787.22,0.00014027,2]
[353777211,1740037852822,-500.0,0.00014027,2]
[353777212,1740037852833,-500.0,0.00014027,2]
[353777213,1740037852843,-500.0,0.00014027,2]
[353777214,1740037852852,-500.0,0.00014027,2]
[353777215,1740037852862,-500.0,0.00014027,2]
[353777216,1740037852872,-500.0,0.00014027,2]
[353777217,1740037852882,-538.11,0.00014027,2]
[353777218,1740037852891,-500.0,0.00014027,2]
[353777219,1740037852900,-8662.27,0.00014027,2]
[353777220,1740037852911,-500.0,0.00014027,2]
[353777221,1740037852921,-1184.71,0.00014027,2]
[353777222,1740037852931,-500.0,0.00014027,2]
[353777223,1740037852940,-723.29,0.00014027,2]
[353777224,1740037852949,-500.0,0.00014027,2]
[353777225,1740037852959,-23255.84,0.00014027,2]
[353777226,1740037852969,-573.16,0.00014027,2]
[353777227,1740037852978,-1913.12,0.00014027,2]
[353777228,1740037852988,-500.0,0.00014027,2]
[353777229,1740037852997,-2295.318834,0.00014027,2]
[353777230,1740037853007,-941.61,0.00014027,2]
[353777231,1740037853016,-996.372878,0.00014027,2]
[353777232,1740037853026,-500.0,0.00014027,2]
[353777233,1740037853040,-2662.09,0.00014027,2]
[353777234,1740037853060,-996.372878,0.00014027,2]
[353777235,1740037853079,-2295.318834,0.00014027,2]
[353777236,1740037853101,-206.985044,0.00014027,2]
[353777237,1740037853116,-500.0,0.00014027,2]
[353777238,1740037853136,-590.94,0.00014027,2]
[353777239,1740037853155,-206.985044,0.00014027,2]
[353777240,1740037853173,-500.0,0.00014027,2]
[353777241,1740037853192,-500.0,0.00014027,2]
[353777242,1740037853210,-497.8877586,0.00014027,2]
[353777243,1740037853231,-340.00026902,0.00014027,2]
[353777244,1740037853245,-2197.48,0.00014027,2]
[353777245,1740037853265,-500.0,0.00014027,2]
[353777246,1740037853278,-151.0,0.00014027,2]
[353777247,1740037853293,-500.0,0.00014027,2]
[353777248,1740037853308,-1074.78,0.00014027,2]
[353777249,1740037853323,-500.0,0.00014027,2]
[353777250,1740037853337,-500.0,0.00014027,2]
[353777251,1740037853353,-867.11,0.00014027,2]
[353777252,1740037853368,-500.0,0.00014027,2]
[353777253,1740037853383,-500.0,0.00014027,2]
[353777254,1740037853400,-500.0,0.00014027,2]
[353777255,1740037853414,-500.0,0.00014027,2]
[353777256,1740037853430,-450.0,0.00014027,2]
[353777257,1740037853445,-2163.78,0.00014027,2]
[353777258,1740037853460,-500.0,0.00014027,2]
[353777259,1740037853475,-604.11,0.00014027,2]
[353777260,1740037853489,-518.91001123,0.00014027,2]
[353777261,1740037853505,-500.0,0.00014027,2]
[353777262,1740037853519,-450.0,0.00014027,2]
[353777263,1740037853534,-521.95,0.00014027,2]
[353777264,1740037853548,-933.912484,0.00014027,2]
[353777265,1740037853563,-500.0,0.00014027,2]
[353777266,1740037853577,-500.0,0.00014027,2]
[353777267,1740037853592,-933.912484,0.00014027,2]
[353777268,1740037853607,-612.621367,0.00014027,2]
[353777269,1740037853621,-1249.181117,0.00014027,2]
[353777270,1740037853637,-1052.76,0.00014027,2]
[353777271,1740037853652,-1391.9,0.00014027,2]
[353777272,1740037853667,-612.621367,0.00014027,2]
[353777273,1740037853682,-500.0,0.00014027,2]
[353777274,1740037853698,-1249.181117,0.00014027,2]
[353777275,1740037853713,-500.0,0.00014027,2]
[353777276,1740037853728,-500.0,0.00014027,2]
[353777277,1740037853744,-506.04350759,0.00014027,2]
[353777278,1740037853758,-508.22,0.00014027,2]
[353777279,1740037853775,-500.0,0.00014027,2]
[353777280,1740037853797,-500.0,0.00014027,2]
[353777281,1740037853812,-500.0,0.00014027,2]
[353777282,1740037853827,-500.0,0.00014027,2]
[353777283,1740037853838,-500.0,0.00014027,2]
[353777284,1740037853847,-500.0,0.00014027,2]
[353777285,1740037853857,-500.0,0.00014027,2]
[353777286,1740037853985,-500.0,0.00014027,2]
[353777287,1740037854008,-500.0,0.00014027,2]
[353777288,1740037854018,-500.0,0.00014027,2]
[353777289,1740037854027,-500.0,0.00014027,2]
[353777290,1740037854037,-273.94039357,0.00014027,2]
[353777291,1740037854047,-624.48,0.00014027,2]
[353777292,1740037854056,-502.369147,0.00014027,2]
[353777293,1740037854065,-500.0,0.00014027,2]
[353777294,1740037854075,-502.369147,0.00014027,2]
[353777295,1740037854084,-500.0,0.00014027,2]
[353777296,1740037854097,-500.0,0.00014027,2]
[353777297,1740037854107,-1976.19,0.00014027,2]
[353777298,1740037854116,-4925.33795116,0.00014027,2]
[353777299,1740037854292,-3278.33204884,0.00014027,2]
[353777300,1740037854302,-500.0,0.00014027,2]
[353777301,1740037854311,-500.0,0.00014027,2]
[353777302,1740037854320,-557.016209,0.00014027,2]
[353777303,1740037854330,-4279.92,0.00014027,2]
[353777304,1740037854339,-737.08,0.00014027,2]
[353777305,1740037854349,-557.016209,0.00014027,2]
[353777306,1740037854359,-549.84,0.00014027,2]
[353777307,1740037854368,-500.0,0.00014027,2]
[353777308,1740037854378,-500.0,0.00014027,2]
[353777309,1740037854387,-3463.27422391,0.00014027,2]
[353777310,1740037854399,-505.29837822,0.00014027,2]
[353777311,1740037854724,-633.506484,0.00013599,5]
[353777312,1740037855068,-358.15344725,0.00013599,5]
[353777313,1740037855080,-1612.84655275,0.00013599,5]
[353777314,1740037884767,248.592672,9.041e-05,2]
[353777317,1740038353333,1000.0,0.00019,120]
[353777323,1740038808123,-496.50564045,0.00011972,2]
[353777336,1740039010930,256.163038,9.041e-05,2]
[353777369,1740039032104,-703.49435955,0.00011972,2]
[353777370,1740039032114,-963.27230458,0.0001255,2]
[353777371,1740039032123,-963.27230458,0.0001265,2]
[353777373,1740039032133,-540.6394751,0.00012651,2]
[353777376,1740039032142,-963.27230458,0.0001275,2]
[353777379,1740039032151,-866.04925161,0.0001285,2]
[353777432,1740039037779,-97.22305297,0.0001285,2]
[353777433,1740039037788,-963.27230458,0.0001295,2]
[353777434,1740039037798,-300.0,0.00012999,2]
[353777435,1740039037807,-306.0,0.00013,2]
[353777436,1740039037817,-306.0,0.00013,2]
[353777437,1740039037826,-153.0,0.00013,2]
[353777438,1740039037835,-355.207113,0.00013,2]
[353777439,1740039037844,-154.7577468,0.00013,2]
[353777440,1740039037853,-840.3020963,0.00013,2]
[353777441,1740039037862,-557.1710486,0.00013,2]
[353777442,1740039037871,-709.4347946,0.00013,2]
[353777443,1740039037880,-355.207113,0.00013,2]
[353777444,1740039037889,-153.0,0.00013,2]
[353777445,1740039037899,-354.0851278,0.00013,2]
[353777446,1740039037909,-355.207113,0.00013041,2]
[353777447,1740039037919,-963.27230458,0.0001305,2]
[353777448,1740039037928,-153.0,0.00013078,2]
[353777449,1740039037937,-557.1710486,0.00013078,2]
[353777450,1740039037947,-557.1710486,0.00013078,2]
[353777451,1740039037956,-153.0,0.00013078,2]
[353777452,1740039037966,-153.0,0.00013078,2]
[353777453,1740039037975,-963.27230458,0.0001315,2]
[353777454,1740039037985,-153.0,0.00013178,2]
[353777455,1740039037995,-154.7577468,0.00013178,2]
[353777456,1740039038004,-557.1710486,0.00013178,2]
[353777457,1740039038013,-864.0003628,0.00013178,2]
[353777458,1740039038022,-963.27230458,0.0001325,2]
[353777459,1740039038032,-1200.0,0.00013342,2]
[353777460,1740039038042,-963.27230458,0.0001335,2]
[353777461,1740039038051,-963.27230458,0.0001345,2]
[353777462,1740039038060,-25974.99369669,0.000135,2]
[353777509,1740040057667,243.354886,9.041e-05,2]
[353777517,1740040113461,1064.15054927,0.00018032,90]
[353777537,1740040232037,-1200.0,0.00011972,2]
[353777538,1740040232047,-1200.0,0.00013342,2]
[353777539,1740040232057,-66.36162807,0.00013354,2]
[353777540,1740040232069,-233.63837193,0.00013354,2]
[353777541,1740040232079,-13275.78028017,0.00013355,2]
[353777542,1740040232089,-1842.12392912,0.00013376,2]
[353777543,1740040232098,-13762.12206802,0.000135,5]
[353777544,1740040232108,-2664.97987276,0.000135,5]
[353777545,1740040232118,-7765.85519504,0.000135,2]
[353777546,1740040232145,-1134.62260034,0.000135,2]
[353777563,1740040237911,-6881.06103402,0.000135,5]
[353777564,1740040237921,-124732.86699973,0.000135,2]
[353777589,1740040243350,-1332.48993638,0.000135,5]
[353777590,1740040243360,-40391.6615072,0.000135,2]
[353777591,1740040243370,-6434.526,0.000135,2]
[353777592,1740040243379,-963.27230458,0.0001355,2]
[353777593,1740040243389,-174.12216163,0.00013598,2]
[353777594,1740040243526,-4632.11487717,0.00013599,2]
[353777595,1740040243537,-153.0,0.000136,2]
[353777596,1740040243547,-153.0,0.000136,2]
[353777597,1740040243556,-155.6390362,0.000136,2]
[353777598,1740040243565,-153.0,0.000136,2]
[353777599,1740040243575,-153.0,0.000136,2]
[353777600,1740040243585,-557.1710486,0.000136,2]
[353777601,1740040243595,-153.0,0.000136,2]
[353777602,1740040243604,-153.0,0.000136,2]
[353777603,1740040243613,-153.0,0.000136,2]
[353777604,1740040243623,-153.0,0.000136,2]
[353777605,1740040243632,-306.0,0.000136,2]
[353777606,1740040243642,-153.0,0.000136,2]
[353777607,1740040243651,-309.5154936,0.000136,2]
[353777608,1740040243661,-710.414226,0.000136,2]
[353777609,1740040243671,-306.0,0.000136,2]
[353777610,1740040243680,-153.0,0.000136,2]
[353777611,1740040243691,-355.207113,0.000136,2]
[353777612,1740040243700,-153.0,0.000136,2]
[353777613,1740040243710,-306.0,0.000136,2]
[353777614,1740040243719,-153.0,0.000136,2]
[353777615,1740040243729,-154.7577468,0.000136,2]
[353777616,1740040243739,-153.0,0.000136,2]
[353777617,1740040243749,-355.207113,0.000136,2]
[353777618,1740040243759,-153.0,0.000136,2]
[353777619,1740040243768,-863.8681816,0.000136,2]
[353777620,1740040243778,-153.0,0.000136,2]
[353777621,1740040243788,-154.7577468,0.000136,2]
[353777622,1740040243797,-154.7577468,0.000136,2]
[353777623,1740040243807,-153.0,0.000136,2]
[353777624,1740040243816,-154.7577468,0.000136,2]
[353777625,1740040243827,-153.0,0.000136,2]
[353777626,1740040243836,-154.7577468,0.000136,2]
[353777627,1740040243845,-557.1710486,0.000136,2]
[353777628,1740040243855,-336.1015315,0.000136,2]
[353777629,1740040243865,-153.0,0.000136,2]
[353777630,1740040243875,-154.138103,0.000136,2]
[353777631,1740040243885,-153.0,0.000136,2]
[353777632,1740040243895,-355.1269712,0.000136,2]
[353777633,1740040243905,-230.5698995,0.00013602,2]
[353777634,1740040243915,-963.27230458,0.0001365,2]
[353777635,1740040243925,-503.73572662,0.00013673,2]
[353777636,1740040243936,-500.0,0.00013673,2]
[353777637,1740040243946,-500.0,0.00013673,2]
[353777638,1740040243959,-500.0,0.00013673,2]
[353777639,1740040243968,-500.0,0.00013673,2]
[353777640,1740040243977,-3000.0,0.0001368,2]
[353777641,1740040243986,-151.0,0.0001369,2]
[353777642,1740040243998,-500.0,0.00013697,2]
[353777643,1740040244009,-542.07893277,0.00013697,2]
[353777644,1740040244019,-548.64689552,0.00013698,2]
[353777645,1740040244030,-500.92102813,0.00013698,2]
[353777646,1740040244040,-500.0,0.00013698,2]
[353777647,1740040244050,-500.0,0.00013698,2]
[353777648,1740040244060,-500.0,0.00013698,2]
[353777649,1740040244070,-500.0,0.00013698,2]
[353777650,1740040244080,-500.0,0.00013698,2]
[353777651,1740040244090,-500.0,0.00013698,2]
[353777652,1740040244099,-512.04108396,0.00013698,2]
[353777653,1740040244109,-500.0,0.00013698,2]
[353777654,1740040244119,-500.0,0.00013698,2]
[353777655,1740040244129,-500.0,0.00013698,2]
[353777656,1740040244150,-500.0,0.00013698,2]
[353777657,1740040244160,-500.0,0.00013698,2]
[353777658,1740040244171,-500.0,0.00013698,2]
[353777659,1740040244182,-359.27682096,0.00013698,2]
[353777660,1740040244192,-500.0,0.00013698,2]
[353777661,1740040244203,-556.09864368,0.00013698,2]
[353777662,1740040244213,-507.71253049,0.00013698,2]
[353777663,1740040244223,-500.0,0.00013698,2]
[353777664,1740040244234,-500.0,0.00013698,2]
[353777665,1740040244244,-500.0,0.00013698,2]
[353777666,1740040244254,-361.54748092,0.00013698,2]
[353777667,1740040244264,-500.0,0.00013698,2]
[353777668,1740040244274,-505.89476479,0.00013698,2]
[353777669,1740040244284,-500.0,0.00013698,2]
[353777670,1740040244293,-507.13549673,0.00013698,2]
[353777671,1740040244304,-502.03447348,0.00013698,2]
[353777672,1740040244314,-500.0,0.00013698,2]
[353777673,1740040244324,-500.0,0.00013698,2]
[353777674,1740040244334,-500.0,0.00013698,2]
[353777675,1740040244344,-500.0,0.00013698,2]
[353777676,1740040244354,-500.0,0.00013698,2]
[353777677,1740040244364,-529.14067277,0.00013698,2]
[353777678,1740040244375,-500.0,0.00013698,2]
[353777679,1740040244385,-500.0,0.00013698,2]
[353777680,1740040244395,-500.0,0.00013698,2]
[353777681,1740040244404,-500.0,0.00013698,2]
[353777682,1740040244415,-500.0,0.00013698,2]
[353777683,1740040244425,-500.0,0.00013698,2]
[353777684,1740040244435,-500.28283846,0.00013698,2]
[353777685,1740040244444,-500.0,0.00013698,2]
[353777686,1740040244454,-500.0,0.00013698,2]
[353777687,1740040244464,-500.0,0.00013698,2]
[353777688,1740040244474,-500.0,0.00013698,2]
[353777689,1740040244484,-504.14636842,0.00013698,2]
[353777690,1740040244493,-507.93967942,0.00013698,2]
[353777691,1740040244503,-500.0,0.00013698,2]
[353777692,1740040244512,-500.0,0.00013698,2]
[353777693,1740040244522,-500.0,0.00013698,2]
[353777694,1740040244531,-506.49633622,0.00013698,2]
[353777695,1740040244541,-500.0,0.00013698,2]
[353777696,1740040244550,-500.0,0.00013698,2]
[353777697,1740040244560,-500.0,0.00013698,2]
[353777698,1740040244569,-500.0,0.00013698,2]
[353777699,1740040244579,-500.0,0.00013698,2]
[353777700,1740040244588,-500.0,0.00013698,2]
[353777701,1740040244598,-500.0,0.00013698,2]
[353777702,1740040244608,-500.0,0.00013698,2]
[353777703,1740040244618,-500.0,0.00013698,2]
[353777704,1740040244628,-500.0,0.00013698,2]
[353777705,1740040244638,-501.87035438,0.00013698,2]
[353777706,1740040244650,-500.0,0.00013698,2]
[353777707,1740040244662,-501.90806868,0.00013698,2]
[353777708,1740040244672,-500.0,0.00013698,2]
[353777709,1740040244682,-500.0,0.00013698,2]
[353777710,1740040244693,-500.0,0.00013698,2]
[353777711,1740040244703,-500.0,0.00013698,2]
[353777712,1740040244714,-500.0,0.00013698,2]
[353777713,1740040244724,-306.10350197,0.00013698,2]
[353777714,1740040244734,-366.35790411,0.00013698,2]
[353777715,1740040244743,-500.0,0.00013698,2]
[353777716,1740040244753,-500.0,0.00013698,2]
[353777717,1740040244763,-500.0,0.00013698,2]
[353777718,1740040244772,-502.41471504,0.00013698,2]
[353777719,1740040244782,-503.92062223,0.00013698,2]
[353777720,1740040244792,-500.0,0.00013698,2]
[353777721,1740040244802,-510.90713229,0.00013698,2]
[353777722,1740040244811,-500.0,0.00013698,2]